lending/lending_fUSD_20250131
["ID","MTS","AMOUNT","RATE_DAILY","PERIOD"]
[351143175,1738349463226,-934.8,0.00018629,2]
[351143176,1738349463235,-500.0,0.00018629,2]
[351143177,1738349463245,-500.0,0.0001863,2]
[351143178,1738349463254,-626.85,0.0001863,2]
[351143179,1738349463264,-554.29,0.0001863,2]
[351143180,1738349463277,-500.0,0.0001863,2]
[351143181,1738349463288,-500.0,0.0001863,2]
[351143182,1738349463298,-500.0,0.0001863,2]
[351143183,1738349463307,-500.0,0.00018666,2]
[351143184,1738349463317,-501.67,0.00018666,2]
[351143185,1738349463327,-850.9,0.00018666,2]
[351143186,1738349463337,-510.62,0.00018666,2]
[351143187,1738349463346,-544.88,0.00018699,2]
[351143188,1738349463356,-174.58,0.00018749,2]
[351143189,1738349463366,-500.0,0.00018764,2]
[351143190,1738349463384,-500.0,0.00018765,2]
[351143191,1738349463393,-500.0,0.00018765,2]
[351143192,1738349463403,-533.98,0.00018765,2]
[351143193,1738349463412,-500.0,0.00018765,2]
[351143194,1738349463422,-500.0,0.00018765,2]
[351143195,1738349463432,-1563.77,0.00018765,2]
[351143196,1738349463442,-500.0,0.00018766,2]
[351143197,1738349463452,-500.0,0.00018766,2]
[351143198,1738349463462,-500.0,0.00018766,2]
[351143199,1738349463471,-193.04,0.00018766,2]
[351143200,1738349463481,-500.0,0.00018766,2]
[351143201,1738349463491,-702.2,0.00018766,2]
[351143202,1738349463501,-500.0,0.00018766,2]
[351143203,1738349463662,-934.8,0.00018766,2]
[351143204,1738349463672,-500.0,0.00018766,2]
[351143205,1738349463682,-500.0,0.00018767,2]
[351143206,1738349463692,-626.85,0.00018767,2]
[351143207,1738349463702,-500.0,0.00018767,2]
[351143208,1738349463713,-500.0,0.00018767,2]
[351143209,1738349463723,-493.76,0.00018767,2]
[351143210,1738349463732,-2293.73340376,0.00018797,2]
[351143211,1738349463742,-500.0,0.00018803,2]
[351143212,1738349463751,-501.67,0.00018803,2]
[351143213,1738349463761,-850.9,0.00018803,2]
[351143214,1738349463771,-510.62,0.00018803,2]
[351143215,1738349463780,-605.31211446,0.00018805,2]
[351143216,1738349463790,-544.88,0.00018836,2]
[351143217,1738349463801,-500.0,0.00018901,2]
[351143218,1738349463811,-500.0,0.00018902,2]
[351143219,1738349463820,-500.0,0.00018902,2]
[351143220,1738349463830,-533.98,0.00018902,2]
[351143221,1738349463840,-500.0,0.00018902,2]
[351143222,1738349463849,-500.0,0.00018902,2]
[351143223,1738349463859,-1563.77,0.00018902,2]
[351143224,1738349463872,-500.0,0.00018903,2]
[351143225,1738349463882,-500.0,0.00018903,2]
[351143226,1738349463894,-318.86,0.00018903,2]
[351143227,1738349463904,-523.91,0.00018903,2]
[351143228,1738349463913,-702.2,0.00018903,2]
[351143229,1738349463922,-500.0,0.00018903,2]
[351143230,1738349463932,-934.8,0.00018903,2]
[351143231,1738349463941,-500.0,0.00018903,2]
[351143232,1738349463951,-292.46,0.00018904,2]
[351143233,1738349463960,-626.85,0.00018904,2]
[351143234,1738349463970,-500.0,0.00018904,2]
[351143235,1738349463980,-500.0,0.00018904,2]
[351143236,1738349463989,-1050.0,0.00018904,2]
[351143237,1738349463998,-406.03015754,0.00018916,2]
[351143238,1738349464008,-262.02908695,0.0001894,2]
[351143239,1738349464018,-501.67,0.0001894,2]
[351143240,1738349464027,-850.9,0.0001894,2]
[351143241,1738349464037,-510.62,0.0001894,2]
[351143242,1738349464047,-2293.73340376,0.00018969,2]
[351143243,1738349464057,-500.0,0.00018969,2]
[351143244,1738349464067,-500.0,0.00018969,2]
[351143245,1738349464077,-500.0,0.00018969,2]
[351143246,1738349464088,-544.88,0.00018973,2]
[351143247,1738349464099,-500.0,0.00018982,2]
[351143248,1738349464110,-500.0,0.00018982,2]
[351143249,1738349464125,-500.0,0.00018982,2]
[351143250,1738349464135,-500.0,0.00018982,2]
[351143251,1738349464145,-500.0,0.00018982,2]
[351143252,1738349464155,-500.0,0.00018982,2]
[351143253,1738349464164,-500.0,0.00018982,2]
[351143254,1738349464174,-500.0,0.00018982,2]
[351143255,1738349464183,-500.0,0.00018982,2]
[351143256,1738349464192,-500.0,0.00018982,2]
[351143257,1738349464201,-500.0,0.00018982,2]
[351143258,1738349464211,-500.0,0.00018982,2]
[351143259,1738349464220,-500.0,0.00018982,2]
[351143260,1738349464230,-500.0,0.00018982,2]
[351143261,1738349464238,-500.0,0.00018982,2]
[351143262,1738349464247,-500.0,0.00018982,2]
[351143263,1738349464256,-500.0,0.00018982,2]
[351143264,1738349464265,-500.0,0.00018982,2]
[351143265,1738349464273,-500.0,0.00018982,2]
[351143266,1738349464282,-500.0,0.00018982,2]
[351143267,1738349464289,-500.0,0.00018982,2]
[351143268,1738349464296,-500.0,0.00018982,2]
[351143269,1738349464304,-500.0,0.00018982,2]
[351143270,1738349464312,-500.0,0.00018982,2]
[351143271,1738349464322,-500.0,0.00018982,2]
[351143272,1738349464330,-500.0,0.00018982,2]
[351143273,1738349464338,-500.0,0.00018982,2]
[351143274,1738349464346,-500.0,0.00018982,2]
[351143275,1738349464354,-500.0,0.00018982,2]
[351143276,1738349464361,-500.0,0.00018982,2]
[351143277,1738349464375,-500.0,0.00018982,2]
[351143278,1738349464383,-500.0,0.00018982,2]
[351143279,1738349464393,-500.0,0.00018982,2]
[351143280,1738349464404,-500.0,0.00018982,2]
[351143281,1738349464414,-500.0,0.00018982,2]
[351143282,1738349464423,-500.0,0.00018982,2]
[351143283,1738349464431,-500.0,0.00018982,2]
[351143284,1738349464439,-500.0,0.00018982,2]
[351143285,1738349464448,-500.0,0.00018982,2]
[351143286,1738349464458,-500.0,0.00018982,2]
[351143287,1738349464468,-500.0,0.00018982,2]
[351143288,1738349464479,-668.0,0.00018982,2]
[351143289,1738349464488,-500.0,0.00018982,2]
[351143290,1738349464497,-500.0,0.00018982,2]
[351143291,1738349464508,-500.0,0.00018982,2]
[351143292,1738349464517,-500.0,0.00018982,2]
[351143293,1738349464526,-500.0,0.00018982,2]
[351143294,1738349464535,-500.0,0.00018982,2]
[351143295,1738349464544,-500.0,0.00018982,2]
[351143296,1738349464554,-500.0,0.00018982,2]
[351143297,1738349464562,-500.0,0.00018982,2]
[351143298,1738349464572,-500.0,0.00018982,2]
[351143299,1738349464581,-500.0,0.00018982,2]
[351143300,1738349464590,-500.0,0.00018982,2]
[351143301,1738349464599,-500.0,0.00018982,2]
[351143302,1738349464608,-500.0,0.00018982,2]
[351143303,1738349464620,-500.0,0.00018982,2]
[351143304,1738349464629,-500.0,0.00018982,2]
[351143305,1738349464638,-500.0,0.00018982,2]
[351143306,1738349464647,-500.0,0.00018982,2]
[351143307,1738349464656,-500.0,0.00018982,2]
[351143308,1738349464665,-500.0,0.00018982,2]
[351143309,1738349464675,-500.0,0.00018982,2]
[351143310,1738349464683,-500.0,0.00018982,2]
[351143311,1738349464692,-500.0,0.00018982,2]
[351143312,1738349464701,-500.0,0.00018982,2]
[351143313,1738349464711,-500.0,0.00018982,2]
[351143314,1738349464720,-500.0,0.00018982,2]
[351143315,1738349464729,-500.0,0.00018982,2]
[351143316,1738349464739,-500.0,0.00018982,2]
[351143317,1738349464748,-500.0,0.00018982,2]
[351143318,1738349464757,-500.0,0.00018982,2]
[351143319,1738349464766,-500.0,0.00018982,2]
[351143320,1738349464775,-500.0,0.00018982,2]
[351143321,1738349464784,-500.0,0.00018982,2]
[351143322,1738349464794,-500.0,0.00018982,2]
[351143323,1738349464803,-500.0,0.00018982,2]
[351143324,1738349464813,-500.0,0.00018982,2]
[351143325,1738349464822,-500.0,0.00018982,2]
[351143326,1738349464831,-500.0,0.00018982,2]
[351143327,1738349464841,-500.0,0.00018982,2]
[351143328,1738349464850,-500.0,0.00018982,2]
[351143329,1738349464859,-500.0,0.00018982,2]
[351143330,1738349464871,-606.0,0.00018982,2]
[351143331,1738349464881,-1706.66,0.00019,2]
[351143332,1738349464892,-500.0,0.00019013,2]
[351143333,1738349464902,-500.0,0.00019038,2]
[351143334,1738349464912,-155.52,0.00019039,2]
[351143335,1738349464921,-500.0,0.00019039,2]
[351143336,1738349464931,-533.98,0.00019039,2]
[351143337,1738349464940,-500.0,0.00019039,2]
[351143338,1738349464949,-500.0,0.00019039,2]
[351143339,1738349464959,-1563.77,0.00019039,2]
[351143340,1738349464968,-500.0,0.0001904,2]
[351143341,1738349464979,-429.0092528,0.0001904,2]
[351143342,1738349464988,-702.2,0.0001904,2]
[351143343,1738349464997,-500.0,0.0001904,2]
[351143344,1738349465006,-934.8,0.0001904,2]
[351143345,1738349465016,-626.85,0.00019041,2]
[351143346,1738349465025,-500.0,0.00019041,2]
[351143347,1738349465034,-434.92,0.00019041,2]
[351143348,1738349465044,-501.67,0.00019077,2]
[351143349,1738349465053,-850.9,0.00019077,2]
[351143350,1738349465062,-510.62,0.00019077,2]
[351143351,1738349465071,-544.88,0.0001911,2]
[351143352,1738349465080,-2293.73340376,0.00019141,2]
[351143353,1738349465090,-500.0,0.00019176,2]
[351143354,1738349465099,-533.98,0.00019176,2]
[351143355,1738349465108,-500.0,0.00019176,2]
[351143356,1738349465118,-159.36,0.00019176,2]
[351143357,1738349465128,-1563.77,0.00019176,2]
[351143358,1738349465141,-550.48,0.00019177,2]
[351143359,1738349465154,-702.2,0.00019177,2]
[351143360,1738349465169,-500.0,0.00019177,2]
[351143361,1738349465182,-934.8,0.00019177,2]
[351143362,1738349465194,-626.85,0.00019178,2]
[351143363,1738349465208,-500.0,0.00019178,2]
[351143364,1738349465222,-150.54,0.00019178,2]
[351143365,1738349465236,-501.67,0.00019214,2]
[351143366,1738349465249,-850.9,0.00019214,2]
[351143367,1738349465261,-510.62,0.00019214,2]
[351143368,1738349465273,-544.88,0.00019247,2]
[351143369,1738349465284,-746.0,0.000193,2]
[351143370,1738349465298,-662.0,0.000193,2]
[351143371,1738349465312,-181.83839044,0.00019301,2]
[351143372,1738349465325,-486.05,0.00019302,2]
[351143373,1738349465339,-500.0,0.00019313,2]
[351143374,1738349465351,-533.98,0.00019313,2]
[351143375,1738349465365,-500.0,0.00019313,2]
[351143376,1738349465382,-1563.77,0.00019313,2]
[351143377,1738349465399,-244.51552111,0.00019314,2]
[351143378,1738349465418,-624.0470169,0.00019314,2]
[351143379,1738349465433,-1425.17086575,0.00019314,2]
[351143380,1738349465444,-122.18412475,0.00019314,2]
[351143381,1738349465459,-483.7765,0.00019314,2]
[351143382,1738349465475,-96.23937525,0.00019314,2]
[351143383,1738349465489,-500.0,0.00019314,2]
[351143384,1738349465502,-934.8,0.00019314,2]
[351143385,1738349465517,-413.56240603,0.00019315,2]
[351143386,1738349465530,-213.28759397,0.00019315,2]
[351143387,1738349465540,-141.309362,0.00019315,2]
[351143388,1738349465554,-358.690638,0.00019315,2]
[351143389,1738349465570,-1599.0,0.00019316,2]
[351143390,1738349465581,-501.67,0.00019351,2]
[351143391,1738349465594,-850.9,0.00019351,2]
[351143392,1738349465605,-510.62,0.00019351,2]
[351143393,1738349465620,-544.88,0.00019384,2]
[351143394,1738349465633,-605.31211446,0.00019387,2]
[351143395,1738349465645,-406.03015754,0.00019388,2]
[351143396,1738349465655,-569.28,0.0001945,2]
[351143397,1738349465666,-533.98,0.0001945,2]
[351143398,1738349465679,-227.08,0.0001945,2]
[351143399,1738349465690,-1563.77,0.0001945,2]
[351143400,1738349465701,-702.2,0.00019451,2]
[351143401,1738349465714,-500.0,0.00019451,2]
[351143402,1738349465726,-906.58709,0.00019451,2]
[351143403,1738349610776,150.0,0.0002084,120]
[351143408,1738350238953,157.53,0.00010137,2]
[351143409,1738350316500,-150.0,0.00021088,120]
[351143410,1738350316555,-150.0,0.00022493,120]
[351143411,1738350316581,-150.0,0.00022613,120]
[351143412,1738350316606,-218.0,0.00023,120]
[351143430,1738350632087,-550.0,0.00013,2]
[351143431,1738350632098,-150.0,0.00013135,2]
[351143432,1738350632108,-839.55,0.0001354,2]
[351143433,1738350632118,-150.0,0.00013622,2]
[351143434,1738350632128,-5610.07221462,0.00014246,2]
[351143435,1738350632137,-1172.95030596,0.00014246,2]
[351143436,1738350632147,-150.0,0.000143,2]
[351143437,1738350632157,-1000.0,0.00014551,2]
[351143438,1738350632167,-200.0,0.00014566,2]
[351143439,1738350632177,-300.0,0.0001458,2]
[351143440,1738350632187,-201.98,0.00014581,2]
[351143441,1738350632197,-1373.11,0.00014618,2]
[351143442,1738350632206,-200.0,0.00014628,2]
[351143443,1738350632216,-500.0,0.00014651,2]
[351143444,1738350632225,-259.02,0.00014722,2]
[351143445,1738350632235,-250.0,0.0001473,2]
[351143446,1738350632244,-23900.0,0.00014733,2]
[351143447,1738350632253,-1127.57,0.00014769,2]
[351143448,1738350632263,-500.0,0.00014778,2]
[351143449,1738350632278,-169.69,0.00014792,2]
[351143450,1738350632288,-600.0,0.00015,2]
[351143451,1738350632298,-2303.3064072,0.00015063,2]
[351143452,1738350632308,-150.0,0.00015065,2]
[351143453,1738350632318,-233.4,0.0001507,2]
[351143454,1738350632328,-150.0,0.00015148,2]
[351143455,1738350632337,-173.45,0.00015148,2]
[351143456,1738350632346,-173.45,0.00015152,2]
[351143457,1738350632358,-173.45,0.00015156,2]
[351143458,1738350632368,-173.45,0.0001516,2]
[351143459,1738350632377,-173.45,0.00015164,2]
[351143460,1738350632387,-173.45,0.00015168,2]
[351143461,1738350632396,-173.45,0.00015172,2]
[351143462,1738350632405,-173.45,0.00015176,2]
[351143463,1738350632415,-173.45,0.0001518,2]
[351143464,1738350632424,-173.45,0.00015184,2]
[351143465,1738350632433,-173.45,0.00015188,2]
[351143466,1738350632442,-173.45,0.00015192,2]
[351143467,1738350632452,-173.45,0.00015196,2]
[351143468,1738350632461,-173.45,0.000152,2]
[351143469,1738350632471,-173.45,0.00015204,2]
[351143470,1738350632480,-173.45,0.00015208,2]
[351143471,1738350632489,-173.45,0.00015212,2]
[351143473,1738350632499,-173.45,0.00015216,2]
[351143475,1738350632508,-173.45,0.0001522,2]
[351143477,1738350632518,-173.45,0.00015224,2]
[351143480,1738350632528,-1297.15,0.00015337,2]
[351143481,1738350632537,-248.09,0.00015337,2]
[351143483,1738350632547,-277.87,0.00015504,2]
[351143486,1738350632556,-414.1,0.00015562,2]
[351143487,1738350632566,-500.0,0.00015672,2]
[351143489,1738350632575,-200.0,0.00015728,2]
[351143492,1738350632585,-329.29902957,0.00015766,2]
[351143493,1738350632595,-839.55,0.00015804,2]
[351143495,1738350632604,-150.0,0.00015954,2]
[351143497,1738350632613,-1009.77,0.00015956,2]
[351143499,1738350632623,-420.0,0.00015964,2]
[351143501,1738350632632,-236.47406656,0.00016045,2]
[351143503,1738350632642,-1867.6076847,0.00016212,2]
[351143505,1738350632651,-155.0,0.00016219,2]
[351143507,1738350632660,-5982.0159,0.00016338,2]
[351143509,1738350632670,-1000.0,0.00016338,2]
[351143511,1738350632679,-1000.0,0.00016369,2]
[351143513,1738350632688,-9637.2779,0.00016374,2]
[351143515,1738350632698,-1377.0926,0.00016374,2]
[351143517,1738350632707,-490.1015,0.00016375,2]
[351143519,1738350632716,-165.965285,0.00016438,2]
[351143521,1738350632726,-184.870971,0.00016438,2]
[351143523,1738350632736,-226.02939682,0.00016474,2]
[351143525,1738350632746,-500.0,0.00016474,2]
[351143527,1738350632755,-500.0,0.00016474,2]
[351143529,1738350632767,-500.0,0.00016474,2]
[351143532,1738350632777,-500.0,0.00016474,2]
[351143533,1738350632787,-500.0,0.00016474,2]
[351143536,1738350632797,-500.0,0.00016474,2]
[351143537,1738350632806,-500.0,0.00016474,2]
[351143540,1738350632815,-500.0,0.00016474,2]
[351143541,1738350632824,-500.0,0.00016474,2]
[351143543,1738350632834,-500.0,0.00016474,2]
[351143545,1738350632843,-500.0,0.00016474,2]
[351143547,1738350632854,-459.27601661,0.00016474,2]
[351143549,1738350632863,-500.0,0.00016474,2]
[351143551,1738350632872,-500.0,0.00016474,2]
[351143553,1738350632882,-500.0,0.00016474,2]
[351143555,1738350632891,-526.16153686,0.00016474,2]
[351143557,1738350632901,-152.56939665,0.00016474,2]
[351143560,1738350632918,-347.43060335,0.00016474,2]
[351143562,1738350632928,-500.0,0.00016474,2]
[351143564,1738350632937,-305.99597163,0.00016474,2]
[351143566,1738350632949,-194.00402837,0.00016474,2]
[351143568,1738350632958,-500.0,0.00016474,2]
[351143570,1738350632967,-500.0,0.00016474,2]
[351143572,1738350632976,-213.48169578,0.00016474,2]
[351143574,1738350632986,-500.0,0.00016474,2]
[351143576,1738350632995,-214.2276431,0.00016474,2]
[351143578,1738350633005,-500.0,0.00016474,2]
[351143580,1738350633014,-500.0,0.00016474,2]
[351143582,1738350633024,-500.0,0.00016474,2]
[351143584,1738350633034,-500.0,0.00016474,2]
[351143586,1738350633044,-500.0,0.00016474,2]
[351143588,1738350633054,-500.0,0.00016474,2]
[351143590,1738350633064,-500.0,0.00016474,2]
[351143592,1738350633074,-500.0,0.00016474,2]
[351143594,1738350633084,-500.0,0.00016474,2]
[351143596,1738350633094,-500.0,0.00016474,2]
[351143598,1738350633105,-500.0,0.00016474,2]
[351143600,1738350633115,-500.0,0.00016474,2]
[351143602,1738350633124,-500.0,0.00016474,2]
[351143604,1738350633134,-500.0,0.00016474,2]
[351143606,1738350633143,-500.0,0.00016474,2]
[351143608,1738350633153,-505.88887589,0.00016474,2]
[351143610,1738350633163,-500.0,0.00016474,2]
[351143611,1738350633172,-500.0,0.00016474,2]
[351143613,1738350633182,-500.0,0.00016474,2]
[351143615,1738350633192,-500.0,0.00016474,2]
[351143617,1738350633202,-500.0,0.00016474,2]
[351143619,1738350633212,-580.28,0.00016474,2]
[351143620,1738350633222,-500.0,0.00016474,2]
[351143622,1738350633232,-500.0,0.00016474,2]
[351143624,1738350633242,-500.0,0.00016474,2]
[351143626,1738350633251,-500.0,0.00016474,2]
[351143628,1738350633261,-500.0,0.00016474,2]
[351143630,1738350633272,-500.0,0.00016474,2]
[351143632,1738350633285,-500.0,0.00016474,2]
[351143634,1738350633295,-500.0,0.00016474,2]
[351143636,1738350633305,-500.0,0.00016474,2]
[351143638,1738350633316,-500.0,0.00016474,2]
[351143640,1738350633326,-500.0,0.00016474,2]
[351143642,1738350633337,-500.0,0.00016474,2]
[351143644,1738350633349,-543.75130699,0.00016474,2]
[351143646,1738350633359,-395.50105404,0.00016474,2]
[351143648,1738350633373,-104.49894596,0.00016474,2]
[351143650,1738350633383,-152.58920404,0.00016474,2]
[351143652,1738350633395,-347.41079596,0.00016474,2]
[351143654,1738350633406,-500.0,0.00016474,2]
[351143656,1738350633416,-258.97644404,0.00016474,2]
[351143658,1738350633428,-241.02355596,0.00016474,2]
[351143660,1738350633438,-500.0,0.00016474,2]
[351143662,1738350633448,-598.39,0.00016474,2]
[351143664,1738350633458,-500.0,0.00016474,2]
[351143666,1738350633468,-500.0,0.00016474,2]
[351143668,1738350633478,-500.0,0.00016474,2]
[351143669,1738350633488,-500.0,0.00016474,2]
[351143671,1738350633498,-2833.97644404,0.00016497,2]
[351143674,1738350633513,-257.181925,0.00016497,2]
[351144101,1738350637898,-200.04302971,0.00014146,2]
[351144103,1738350637908,-9137.13308524,0.00016497,2]
[351144105,1738350637918,-150.0,0.00016569,2]
[351144107,1738350637928,-570.36375567,0.00016574,2]
[351144109,1738350637937,-165.965285,0.00016575,2]
[351144111,1738350637947,-184.870971,0.00016575,2]
[351144113,1738350637960,-500.0,0.00016611,2]
[351144115,1738350637970,-500.0,0.00016611,2]
[351144117,1738350637980,-500.0,0.00016611,2]
[351144119,1738350637990,-354.68,0.00016611,2]
[351144121,1738350637999,-500.0,0.00016611,2]
[351144123,1738350638009,-500.0,0.00016611,2]
[351144126,1738350638019,-500.0,0.00016611,2]
[351144128,1738350638028,-500.0,0.00016611,2]
[351144130,1738350638037,-501.16825507,0.00016611,2]
[351144132,1738350638047,-500.0,0.00016611,2]
[351144133,1738350638056,-500.0,0.00016611,2]
[351144136,1738350638065,-257.97,0.00016611,2]
[351144137,1738350638074,-288.18,0.00016611,2]
[351144140,1738350638084,-362.97,0.00016611,2]
[351144141,1738350638093,-500.0,0.00016611,2]
[351144143,1738350638105,-500.0,0.00016611,2]
[351144145,1738350638115,-500.0,0.00016611,2]
[351144147,1738350638124,-500.0,0.00016611,2]
[351144149,1738350638133,-194.5438561,0.00016611,2]
[351144151,1738350638142,-500.0,0.00016611,2]
[351144153,1738350638152,-171.26,0.00016611,2]
[351144155,1738350638162,-500.0,0.00016611,2]
[351144157,1738350638171,-150.0,0.00016613,2]
[351144159,1738350638180,-3908.0,0.00016613,2]
[351144161,1738350638189,-1107.0,0.00016613,2]
[351144163,1738350638199,-5000.0,0.00016647,2]
[351144165,1738350638208,-688.5184,0.00016647,2]
[351144167,1738350638218,-157.23,0.00016658,30]
[351144169,1738350638227,-1055.01592042,0.00016684,4]
[351144171,1738350638236,-8720.71131867,0.00016708,2]
[351144173,1738350638247,-335.28015851,0.00016708,2]
[351144175,1738350638256,-788.38,0.00016737,2]
[351144177,1738350638265,-500.0,0.00016746,2]
[351144179,1738350638275,-500.0,0.00016746,2]
[351144181,1738350638288,-500.0,0.00016746,2]
[351144183,1738350638297,-463.93984149,0.00016746,2]
[351144196,1738350638418,-36.06015851,0.00016746,2]
[351144198,1738350638427,-278.31722655,0.00016746,2]
[351144201,1738350638447,-221.68277345,0.00016746,2]
[351144204,1738350638460,-792.8315171,0.00016746,2]
[351144207,1738350638482,-522.5284829,0.00016746,2]
[351144209,1738350638491,-500.0,0.00016746,2]
[351144211,1738350638500,-140.9358002,0.00016746,2]
[351144372,1738350640104,-200.04302971,0.00016119,2]
[351144374,1738350640115,-359.0641998,0.00016746,2]
[351144376,1738350640125,-500.0,0.00016746,2]
[351144378,1738350640135,-8.29152448,0.00016746,2]
[351144380,1738350640147,-387.72733961,0.00016746,2]
[351144382,1738350640158,-103.98113591,0.00016746,2]
[351144384,1738350640167,-500.0,0.00016746,2]
[351144386,1738350640176,-500.0,0.00016746,2]
[351144388,1738350640186,-500.0,0.00016746,2]
[351144390,1738350640195,-500.0,0.00016746,2]
[351144392,1738350640205,-500.0,0.00016746,2]
[351144394,1738350640214,-500.0,0.00016746,2]
[351144396,1738350640223,-500.0,0.00016746,2]
[351144398,1738350640233,-500.0,0.00016746,2]
[351144400,1738350640242,-500.0,0.00016746,2]
[351144402,1738350640251,-190.48278826,0.00016746,2]
[351144404,1738350640260,-110.91451842,0.00016746,2]
[351144407,1738350640272,-389.08548158,0.00016746,2]
[351144409,1738350640284,-291.11022462,0.00016746,2]
[351144411,1738350640295,-208.88977538,0.00016746,2]
[351144413,1738350640304,-181.02,0.00016746,2]
[351144415,1738350640313,-1250.0,0.00016746,2]
[351144417,1738350640323,-500.0,0.00016746,2]
[351144419,1738350640332,-500.0,0.00016746,2]
[351144421,1738350640341,-500.0,0.00016746,2]
[351144423,1738350640350,-500.0,0.00016746,2]
[351144424,1738350640362,-500.0,0.00016746,2]
[351144426,1738350640371,-535.2,0.00016746,2]
[351144428,1738350640380,-633.11626781,0.00016746,2]
[351144430,1738350640388,-752.02,0.00016746,2]
[351144432,1738350640397,-373.86033912,0.00016746,2]
[351144434,1738350640408,-271.13966088,0.00016746,2]
[351144437,1738350640418,-71.39471672,0.00016746,2]
[351144439,1738350640429,-428.60528328,0.00016746,2]
[351144441,1738350640438,-207.79471761,0.00016746,2]
[351144443,1738350640449,-292.20528239,0.00016746,2]
[351144445,1738350640458,-27.41293928,0.00016746,2]
[351144448,1738350640474,-533.84706072,0.00016746,2]
[351144449,1738350640483,-500.0,0.00016746,2]
[351144451,1738350640492,-500.0,0.00016746,2]
[351144453,1738350640501,-500.0,0.00016746,2]
[351144455,1738350640511,-500.0,0.00016746,2]
[351144457,1738350640519,-500.0,0.00016746,2]
[351144459,1738350640529,-500.0,0.00016746,2]
[351144461,1738350640538,-500.0,0.00016746,2]
[351144463,1738350640547,-339.32152549,0.00016746,2]
[351144465,1738350640556,-328.85386748,0.00016747,2]
[351144467,1738350640565,-500.0,0.00016747,2]
[351144469,1738350640575,-500.0,0.00016747,2]
[351144471,1738350640584,-313.94815792,0.00016747,2]
[351144473,1738350640593,-500.0,0.00016747,2]
[351144475,1738350640603,-500.0,0.00016747,2]
[351144477,1738350640612,-500.0,0.00016747,2]
[351144479,1738350640622,-500.0,0.00016747,2]
[351144481,1738350640631,-500.0,0.00016747,2]
[351144483,1738350640640,-500.0,0.00016747,2]
[351144485,1738350640649,-500.0,0.00016747,2]
[351144487,1738350640658,-500.0,0.00016747,2]
[351144489,1738350640667,-500.0,0.00016747,2]
[351144491,1738350640677,-500.0,0.00016747,2]
[351144493,1738350640686,-500.0,0.00016747,2]
[351144495,1738350640695,-500.0,0.00016747,2]
[351144497,1738350640704,-204.59052973,0.00016747,2]
[351144499,1738350640713,-500.0,0.00016747,2]
[351144501,1738350640722,-500.0,0.00016747,2]
[351144503,1738350640731,-500.0,0.00016747,2]
[351144505,1738350640740,-500.0,0.00016747,2]
[351144507,1738350640750,-500.0,0.00016747,2]
[351144509,1738350640759,-500.0,0.00016747,2]
[351144511,1738350640768,-500.0,0.00016747,2]
[351144513,1738350640778,-500.0,0.00016747,2]
[351144515,1738350640788,-500.0,0.00016747,2]
[351144517,1738350640797,-500.0,0.00016747,2]